Cogmind - Beta 11.1 @@@ ROGUE MODE // 2022.07.25 @ 23:10:32 Player: Okkudo Result: Destroyed by Y-45 Defender with Beam Rifle Performance ------------- Evolutions (1) 500 Regions Visited (2) 400 Robots Destroyed (18) 90 Value Destroyed (378) 378 Prototype IDs (0) 0 Alien Tech Used (0) 0 Bonus (0) 0 TOTAL SCORE: 1368 Bonus ------- None Cogmind --------- Core Integrity 0/400 Matter 300/300 Energy 100/100 System Corruption 0% Temperature Cool (9) Movement Core (200) Ox3 Location -9/Materials Parts ------- > --- POWER (1) -------- (None) > --- PROPULSION (3) --- (None) > --- UTILITY (3) ------ Medium Storage Unit > --- WEAPON (2) ------- (None) > --- INVENTORY (10) --- Aluminum Leg Small Storage Unit Rocket Launcher Peak State ------------ > --- POWER ------------ Ion Engine > --- PROPULSION ------- Light Treads Light Treads Light Treads > --- UTILITY ---------- Medium Storage Unit Light Armor Plating Recalibrator > --- WEAPON ----------- Assault Rifle Light Assault Rifle > --- INVENTORY -------- Small Storage Unit Small Laser Small Laser [Rating: 12] Favorites ----------- Power Ion Engine Engine Ion Engine Propulsion Light Treads Treads Light Treads Utility Medium Storage Unit Device Recalibrator Storage Medium Storage Unit Protection Light Armor Plating Weapon Light Assault Rifle Energy Gun Small Laser Ballistic Gun Light Assault Rifle Ballistic Cannon Improved Light Cannon Build | -11 -10 -9 ------- Run | Scr Mat Mat Slots Evolved 2 | . . 2 Power . | . . . Propulsion 1 | . . 1 Utility 1 | . . 1 Weapon . | . . . Parts Attached 26 | 6 13 7 Power 2 | 1 1 . Engine 2 | 1 1 . Core . | . . . Reactor . | . . . Propulsion 8 | 2 3 3 Treads 8 | 2 3 3 Leg . | . . . Wheel . | . . . Hover . | . . . Flight . | . . . Utility 6 | 1 4 1 Device 1 | . . 1 Storage 2 | 1 1 . Processor . | . . . Hackware . | . . . Protection 3 | . 3 . Artifact . | . . . Weapon 10 | 2 5 3 Energy Gun 3 | . 1 2 Energy Cannon . | . . . Ballistic Gun 5 | 2 2 1 Ballistic Cannon 2 | . 2 . Launcher . | . . . Special Weapon . | . . . Impact Weapon . | . . . Slashing Weapon . | . . . Piercing Weapon . | . . . Special Melee Weapon . | . . . Unidentified Prototypes . | . . . Parts Lost 12 | . . 12 Power 1 | . . 1 Propulsion 5 | . . 5 Utility 2 | . . 2 Weapon 4 | . . 4 Highest Loss Streak 6 | . . 6 To Critical Strikes . | . . . Average Slot Usage (%) 86 | . 94 71 Engine 10 | . 14 4 Treads 27 | . 27 27 Device 1 | . . 5 Storage 13 | . 14 11 Protection 7 | . 9 3 Energy Gun 3 | . 1 9 Ballistic Gun 18 | . 22 11 Ballistic Cannon 2 | . 4 . Naked Turns . | . . . Heaviest Build 24 | 12 24 22 Greatest Support 60 | 40 40 60 Greatest Overweight (x) . | . . . Average Overweight (x) . | . . . Largest Inventory Capacity 10 | 8 10 10 Average Capacity 8 | 7 8 10 Most Carried 8 | 3 8 6 Average Carried 3 | 1 3 3 Final Capacity 10 | 8 10 10 Final Carried 7 | 1 7 3 Class Distribution -------------------- 56% | Mutant 43% | Scavenger-Mutant Dominant Class ---------------- Mutant | -10/Materials Scavenger-Mutant | -9/Materials Resources | -11 -10 -9 ----------- Run | Scr Mat Mat Matter Collected 601 | 271 273 57 Remotely . | . . . Salvage Created 637 | 55 452 130 Parts 41 | 3 30 8 Haulers Intercepted 1 | . 1 . Recyclers Shooed 1 | . 1 . Parts Field Recycled . | . . . Retrieved Matter . | . . . Parts Self-Destructed . | . . . Prevented . | . . . Kills | -11 -10 -9 ------- Run | Scr Mat Mat Combat Hostiles Destroyed 13 | . 10 3 Guns 13 | . 10 3 Classes Destroyed 7 | 1 5 1 Builder 1 | . 1 . Hauler 1 | . 1 . Recycler 2 | 1 1 . Mechanic 1 | . 1 . Swarmer 5 | . 5 . Grunt 7 | . 5 2 Sentry 1 | . . 1 Best Kill Streak 4 | 1 4 2 Combat Bots Only 4 | . 4 2 Max Kills in Single Turn 1 | 1 1 1 Gunslinging . | . . . Exploded . | . . . Melee . | . . . Uniques/NPCs Destroyed . | . . . Combat | -11 -10 -9 -------- Run | Scr Mat Mat Damage Taken 1906 | . 310 1596 Core 470 | . 67 403 Absorbed by Shields . | . . . Core Remaining (%) 86 | 100 73 . Volleys Fired 70 | 11 46 13 Largest 2 | 1 2 2 Hottest 80 | 20 60 80 Shots Fired 128 | 11 92 25 Gun 124 | 11 88 25 Cannon 4 | . 4 . Launcher . | . . . Special . | . . . Kinetic 110 | 11 90 9 Thermal 18 | . 2 16 Explosive . | . . . Electromagnetic . | . . . Robot Hit Streak 8 | 4 7 8 Robot Miss Streak 5 | 2 5 3 Penetration Max . | . . . Secondary Targets . | . . . Shots Hit Robots 81 | 8 55 18 Core Hits 35 | 2 26 7 Critical Kills . | . . . Critical Parts Destroyed . | . . . Critical Strikes . | . . . Melee Attacks . | . . . Impact . | . . . Slashing . | . . . Piercing . | . . . Sneak Attacks . | . . . Combat Hostiles . | . . . Follow-up Attacks . | . . . Damage Inflicted 776 | 64 516 196 Guns 717 | 64 457 196 Cannons 57 | . 57 . Explosions . | . . . Melee . | . . . Ramming 2 | . 2 . Kinetic 642 | 64 493 85 Thermal 132 | . 21 111 Explosive . | . . . Electromagnetic . | . . . Impact . | . . . Slashing . | . . . Piercing . | . . . Highest Corruption 7 | . 7 . Average Corruption 6 | . 6 . Corruption Purged . | . . . Corruption Blocked . | . . . Effects 12 | . 12 . Message Errors 2 | . 2 . Matter Fused 2 | . 2 . Heat Flow Errors 2 | . 2 . Energy Discharges 2 | . 2 . Data Loss (minor) 2 | . 2 . Misfires 1 | . 1 . Weapon Failures 1 | . 1 . Overload Shots . | . . . Overflow Damage . | . . . Projectiles . | . . . Explosions . | . . . Melee . | . . . Knockbacks 1 | . 1 . Impact . | . . . Kinetic 1 | . 1 . Secondary . | . . . Self-Inflicted Damage . | . . . Shots . | . . . Rammed 1 | . 1 . Targets Rammed 1 | . 1 . Kicked . | . . . Crushed . | . . . Highest Temperature 259 | . 259 8 Average Temperature 44 | . 50 4 Received Heat Transfer 723 | . 108 615 Effects 3 | . 3 . Energy Bleed 1 | . 1 . Interference 2 | . 2 . Siege Activations . | . . . Robots Corrupted . | . . . Combat Hostiles . | . . . Parts Fried . | . . . Impact Corruptions . | . . . Robots Melted . | . . . Combat Hostiles . | . . . Parts Melted . | . . . Heat Transferred 300 | . 50 250 Parts Sabotaged . | . . . Parts Stolen . | . . . Parts Stripped . | . . . Power Chain Reactions . | . . . Missiles Intercepted . | . . . Alert | -11 -10 -9 ------- Run | Scr Mat Mat Peak Influence 331 | 5 331 134 Initial 94 | . 3 94 Average 146 | 2 186 99 Maximum Alert Level 1 | . 1 . Low Security (%) 68 | 100 48 100 Level 1 31 | . 51 . Level 2 . | . . . Level 3 . | . . . Level 4 . | . . . Level 5 . | . . . High Security . | . . . Max Security . | . . . Squads Dispatched 4 | . 2 2 Investigation 2 | . 2 . Extermination . | . . . Reinforcement 2 | . . 2 Assault . | . . . Garrison . | . . . Intercept . | . . . Searches Triggered . | . . . Construction Impeded . | . . . Haulers Reinforced . | . . . Active Scanning Responses . | . . . Cargo Convoy Interrupts . | . . . Stealth | -11 -10 -9 --------- Run | Scr Mat Mat Distress Signals 2 | . . 2 Communications Jammed . | . . . Distress Signals . | . . . Times Spotted 26 | . 18 8 Peak Tracking Total 4 | . 4 4 Tactical Retreats 2 | . 2 . Traps | -11 -10 -9 ------- Run | Scr Mat Mat Traps Triggered 6 | . 6 . Indirectly . | . . . Trap Hack Attempts . | . . . Triggered . | . . . Disarmed . | . . . Reprogrammed . | . . . Reused . | . . . Traps Extracted . | . . . Installed . | . . . Triggered . | . . . Machines | -11 -10 -9 ---------- Run | Scr Mat Mat Machines Disabled . | . . . Max in Single Turn . | . . . Machines Sabotaged . | . . . Garrisons Compromised . | . . . Overloaded Fab Kills . | . . . Hacking | -11 -10 -9 --------- Run | Scr Mat Mat Machines Accessed 5 | . 5 . Terminals 5 | . 5 . Fabricators . | . . . Repair Stations . | . . . Recycling Units . | . . . Scanalyzers . | . . . Garrison Access . | . . . Total Hacks 15 | . 15 . Successful 9 | . 9 . Failed 6 | . 6 . Catastrophic . | . . . Database Lockouts . | . . . Manual 13 | . 13 . Terminals 15 | . 15 . Fabricators . | . . . Repair Stations . | . . . Recycling Units . | . . . Scanalyzers . | . . . Garrison Access . | . . . Terminal Hacks 5 | . 5 . Branch Access Points 1 | . 1 . Zone Layout 4 | . 4 . Fabricator Hacks . | . . . Repair Station Hacks . | . . . Recycling Unit Hacks . | . . . Scanalyzer . | . . . Garrison Access Hacks . | . . . Unauthorized Hacks 4 | . 4 . Terminals 4 | . 4 . Assimilate 1 | . 1 . Botnet 3 | . 3 . Fabricators . | . . . Repair Stations . | . . . Recycling Units . | . . . Scanalyzers . | . . . Garrison Access . | . . . Data Cores Recovered . | . . . Used . | . . . Hacking Detections 5 | . 5 . Full Trace Events 2 | . 2 . Feedback Events . | . . . Feedback Blocked . | . . . Robot Schematics Acquired . | . . . Robots Built . | . . . Authchips . | . . . Time . | . . . Total Robot Build Rating . | . . . Part Schematics Acquired . | . . . Parts Built . | . . . Authchips . | . . . Time . | . . . Total Part Build Rating . | . . . Parts Repaired . | . . . Time . | . . . Parts Recycled . | . . . Recycled Matter . | . . . Retrieved Matter . | . . . Retrieved Components . | . . . Parts Scanalyzed . | . . . Part Schematics Acquired . | . . . Parts Damaged . | . . . Bothacking | -11 -10 -9 ------------ Run | Scr Mat Mat Used RIF Installer . | . . . Robots Hacked . | . . . Non-combat . | . . . Combat . | . . . Robot Hacks Applied . | . . . Relay Couplers Released . | . . . Fabnet Peak Effective % . | . . . Robots Rewired . | . . . Allies Hacked . | . . . Hacks Repelled . | . . . Allies | -11 -10 -9 -------- Run | Scr Mat Mat Total Allies . | . . . Largest Group . | . . . Highest-Rated Group . | . . . Highest-Rated Ally . | . . . Total Orders . | . . . Ally Attacks . | . . . Total Damage . | . . . Kills . | . . . Allies Corrupted . | . . . Allies Melted . | . . . Intel | -11 -10 -9 ------- Run | Scr Mat Mat Robot Analysis Total . | . . . Derelict Logs Recovered . | . . . Drone Launches . | . . . Drone Recoveries . | . . . Exploration | -11 -10 -9 ------------- Run | Scr Mat Mat Turns Passed 1272 | 98 789 385 Spaces Moved 532 | 44 362 126 Core 4 | 4 . . Treads 528 | 40 362 126 Legs . | . . . Wheels . | . . . Hover . | . . . Flight . | . . . Fastest Speed 50 | 50 160 160 Average Speed 159 | 150 160 160 Slowest Speed 160 | 160 160 160 Overloaded Moves . | . . . Propulsion Burnouts . | . . . Robots Hopped . | . . . Cave-ins Triggered . | . . . Exploration Rate (%) 32 | 5 72 19 Regions Visited 2 Branch Regions . Pre-discovered Areas . | . . . Known Exits Taken . | . . . Unknown Exits Taken 2 | 1 1 . Scrap Searched . | . . . Spaces Dug . | . . . Terrain Destroyed . | . . . Melee . | . . . Projectile . | . . . AOE . | . . . Terrain Rammed . | . . . Walls Destroyed . | . . . Machines Disabled . | . . . Actions | -11 -10 -9 --------- Run | Scr Mat Mat Total 846 | 67 493 286 Wait 186 | . 52 134 Move 530 | 43 361 126 Hop . | . . . Pick Up 26 | 7 15 4 Fast Attach . | . . . Attach 20 | 6 8 6 Detach . | . . . Swap 6 | . 5 1 Drop 7 | . 5 2 Fire 70 | 11 46 13 Melee . | . . . Ram . | . . . Kick . | . . . Crush 1 | . 1 . Escape Stasis . | . . . Rewire . | . . . Trap . | . . . Miscellaneous . | . . . Route ------- -11/Scrapyard -10/Materials (discovered 5 exits: [*Mat x3] / *Min x2) -9/Materials (discovered 3 exits: [*Min x2] / [*Sto]) History --------- Turn | Location | Event 11 | -11/Scrapyard | Discovered new exit (range 15) 99 | -11/Scrapyard | Entered Materials 99 | -10/Materials | Discovered new exit (range 8) 309 | -10/Materials | Build established: Mutant 318 | -10/Materials | Discovered new exit (range 12) 349 | -10/Materials | Identified exit to Mines 653 | -10/Materials | Discovered new exit (range 13) 864 | -10/Materials | Discovered new exit (range 16) 888 | -10/Materials | Entered another Materials area 888 | -9/Materials | Evolved 2 slots: Propulsion x1, Utility x1 938 | -9/Materials | Build established: Scavenger-Mutant 1122 | -9/Materials | Lost 6 parts (1p2n1u2w) 1141 | -9/Materials | Discovered new exit (range 15) 1202 | -9/Materials | Discovered new exit (range 6) 1240 | -9/Materials | Discovered new exit (range 10) 1249 | -9/Materials | Core integrity fell below 50% 1265 | -9/Materials | Core integrity fell below 20% 1273 | -9/Materials | Destroyed by Y-45 Defender with Beam Rifle Last Messages --------------- 01115_ Acquired Lgt. Treads. 01135_ R-06 Scavenger collects Beam Rifle. 01136_ Acquired 20 matter. 01141_ EXIT=FOUND 01199_ K-01 Serf collects debris. 01202_ EXIT=FOUND 01203_ O-16 Technician: "IFF HANDSHAKE FAILED. SECURING TERMINAL." 01209_ ALERT: Hostiles spotted, dispatching reinforcements to Terminal M009. 01236_ Critical hit (Burn: +37). 01236_ Lgt. Treads destroyed. 01240_ Critical hit (Burn: +37). 01240_ EXIT=FOUND 01245_ Lgt. Treads destroyed. 01246_ Sml. Laser destroyed. 01248_ Critical hit (Burn: +37). 01257_ Lgt. Treads destroyed. 01258_ Critical hit (Burn: +37). 01263_ Sml. Laser destroyed. 01269_ Critical hit (Burn: +37). 01272_ W-16 Scout sends out distress signal. Map ----- +----------------------------------------------------+ | ?????????????????????????????????????????????????? | | ?????????????????????????????????????????????????? | | ?????????????????????????????????????????????????? | | ??????????????????????????# ?????????????????????? | | ?????????????????????????## ? ???????????????????? | | ???????????????????????### ???????????????????? | | ???????????????????????? ???????????????????? | | ???????????????????????? T ???????????????????? | | ????????????????????????? ??????????????????? | | ?????????????????????????# ?????????????????? | | ?????????????????????????# #????????????????? ! | | ?????????????????????????# #????????????????? | | ?????????????????????????# #???????????????? | | ?????????????????????????# k##########?????? #? | | ???????????????????#?????# k## ####### #? | | ???????????????????# # #? | | ???????????????????# + < #? | | ?????????????????????????# #? | | ?????????????????????????# ## ## ###+### | | ?????????????????????????# ## "!"|" ## # | | ?????????????????????????# ##""!"|""## + """ | | ?????????????????????????# ########### # """ | | ??????????????## ???????## ##????????# #??""" | | ??????????????# ##### #????????# #???? | | ??????????????# #????????# #?????? | | ???????????" + < Y @ Y #????????+ #?????? | | ??????????????# +????????# #?????? | | ??????????????# ##### #????????# #?????? | | ??????????????#####?????# ###????????# #?????? | | ????????????????????????# #??????????# ####### | | ????????????????????????# #??????????# | | ????????????????????????# #??????????# | | ????????????????????????# #######????# | | ????????????????????????# ## ??# ####### | | ????????????????????????# ## [ # #?????? | | ????????????????????????#w ## + #?????? | | ????????????????????????# ##! # #?????? | | ????????????????????????? #########?## ##????? | | ????????????????????????? #????###### #????? | | ????????????????????????? ###### #????? | | ????????????????????????? a < +????? | | ?????????????????????????? #????? | | ???????????????????????????""" ## #????? | | ????????????????????????????"" ?## ##????? | | ????????????????????????????"" ! ???# ###+### | | ???????????????????????????? ????# | | ???????????????????????????? "T?????# | | ?????????????????????????????####?###### | | ?????????????????????????????????? ### ###+#### | | ?????????????????????????????????" #?# #??????? | +----------------------------------------------------+ Best States ------------- Heat Dissipation 28 Energy Generation 10 Energy Capacity 250 Matter Stores 300 Matter Capacity 300 Sight Range 16 Terrain Scan Density 10 Armor Coverage 150 Core Shielding 20 Evasion (%) 40 Recoil Reduction 3 Item Schematics ----------------- None Robot Schematics ------------------ None Fabricated ------------ Nothing Alien Tech Used ----------------- None Achievements -------------- None Challenges ------------ None Game ------ Seed ImprinterBarrageMatter Manual? 0 Play Time 00:17:59 Cumulative 36.7 hours Start 2022.07.25 @ 22:53:21 End 2022.07.25 @ 23:10:32 Sessions 1 Manual Loads 0 Difficulty Rogue Special Mode None Game No. 82 Rogue 82 Adventurer 0 Explorer 0 Win Type - Total 0 Types 0/0/0/0/0/0/0/0/0 Lore% 25 Gallery% 24 Achievement% 23 Wizard Run 0 Options --------- ASCII 0 Keyboard 0 Movement Mouse Keybinds 0 Fullscreen 1 Font 12/Smallcaps Map View 83x54 Tactical HUD 1 Map Filters NONE Filters NONE Steam 1 RUN: 7fce0430-cde4-4a35-af1b-d55798827e20